Cogmind - Beta 17 @@@ ROGUE MODE // 2026.07.05 @ 02:34:43 Player: Bikerider58 Result: Destroyed by B-75 Beast with Heavy Plasma Cannon Performance ------------- Evolutions (2) 1000 Regions Visited (8) 1600 Robots Destroyed (83) 415 Value Destroyed (2911) 2911 Prototype IDs (1) 20 Alien Tech Used (0) 0 Bonus (1504) 1504 TOTAL SCORE: 7450 Bonus ------- High Alert Combat Kills 313 Follower Combat Kills 807 Entered Garrisons 400 Friendly Fire -16 Cogmind --------- Core Integrity 0/550 Matter 200/300 Energy 265/265 System Corruption 5% Temperature Cool (12) Movement Core (850) Ox16 Location -8/Garrison Parts ------- > --- POWER (1) -------- Reinforced Ion Engine > --- PROPULSION (3) --- (None) > --- UTILITY (4) ------ High-capacity Storage Unit > --- WEAPON (3) ------- (None) > --- INVENTORY (20) --- Reinforced Ion Engine Fission Core Fission Core Flexi-carbon Leg Flexi-carbon Leg Huge Storage Unit High-capacity Matter Pod (200) Structural Scanner Improved Sensor Array Seismic Detector Hacking Suite Authchip [R/NC] High-powered Tractor Beam Rocket Launcher Mini Grenade Launcher Katana Peak State ------------ > --- POWER ------------ Light Angular Momentum Engine > --- PROPULSION ------- Improved Carbon-fiber Leg Flexi-carbon Leg Flexi-carbon Leg > --- UTILITY ---------- Improved Heat Sink High-capacity Storage Unit Seismic Detector Core Analyzer > --- WEAPON ----------- Heavy Assault Rifle Improved Assault Rifle Gauss Rifle > --- INVENTORY -------- Improved Ion Engine Fission Core Fission Core Flexi-carbon Leg Flexi-carbon Leg Flexi-carbon Leg Huge Storage Unit High-capacity Matter Pod Structural Scanner Improved Sensor Array Seismic Detector Hacking Suite Authchip [R/NC] High-powered Tractor Beam Heavy Assault Rifle Gauss Rifle Gauss Rifle Rocket Launcher Mini Grenade Launcher Katana [Rating: 43] Favorites ----------- Power Ion Engine Engine Ion Engine Power Core Fission Core Propulsion Light Treads Treads Light Treads Leg Flexi-carbon Leg Wheel Compact Wheel Utility Light Armor Plating Device Seismic Detector Storage High-capacity Storage Unit Processor Core Analyzer Protection Light Armor Plating Weapon Heavy Assault Rifle Ballistic Gun Heavy Assault Rifle Launcher Rocket Launcher Special Weapon Mining Laser Impact Weapon Hammer Slashing Weapon Katana Build | -11 -10 -10 -10 -9 -8 -8 -8 -8 ------- Run | Yrd Mat Min Exi Min Mat Gar Mat Gar Slots Evolved 4 | . . . . . 4 . . . Power . | . . . . . . . . . Propulsion 1 | . . . . . 1 . . . Utility 2 | . . . . . 2 . . . Weapon 1 | . . . . . 1 . . . Parts Attached 71 | 7 11 4 1 3 10 20 10 5 Power 7 | 1 1 . . . 1 3 . 1 Engine 6 | 1 1 . . . 1 2 . 1 Core 1 | . . . . . . 1 . . Reactor . | . . . . . . . . . Propulsion 21 | 2 2 2 . 1 2 10 1 1 Treads 12 | 2 1 . . 1 2 6 . . Leg 7 | . 1 . . . . 4 1 1 Wheel 2 | . . 2 . . . . . . Hover . | . . . . . . . . . Flight . | . . . . . . . . . Utility 22 | 2 5 1 . 2 2 4 5 1 Device 6 | 1 1 . . . . 2 2 . Storage 4 | 1 1 1 . 1 . . . . Processor 2 | . . . . . . . 2 . Hackware . | . . . . . . . . . Protection 10 | . 3 . . 1 2 2 1 1 Artifact . | . . . . . . . . . Weapon 21 | 2 3 1 1 . 5 3 4 2 Energy Gun . | . . . . . . . . . Energy Cannon . | . . . . . . . . . Ballistic Gun 17 | 2 1 1 1 . 5 1 4 2 Ballistic Cannon . | . . . . . . . . . Launcher 1 | . . . . . . 1 . . Special Weapon 1 | . 1 . . . . . . . Impact Weapon 1 | . 1 . . . . . . . Slashing Weapon 1 | . . . . . . 1 . . Piercing Weapon . | . . . . . . . . . Special Melee Weapon . | . . . . . . . . . Unidentified Prototypes 1 | . . . . . . . 1 . Parts Lost 25 | . 3 . . 1 . 3 4 14 Power 1 | . . . . . . . . 1 Propulsion 7 | . 1 . . 1 . 1 1 3 Utility 10 | . 2 . . . . 2 2 4 Weapon 7 | . . . . . . . 1 6 Highest Loss Streak 12 | . 1 . . 1 . 1 2 12 To Critical Strikes 1 | . . . . . . . 1 . Average Backups 16 | . 8 13 20 19 19 19 19 19 Power 2 | . . 1 2 2 3 3 3 3 Propulsion 2 | . . 2 4 4 3 2 3 2 Utility 5 | . 2 3 6 6 6 7 7 8 Weapon 5 | . 4 5 7 5 6 7 6 4 Tool/Special . | . . . . . . . . . Unused Backups 23 | . 2 . . 3 4 2 2 10 Power 4 | . . . . 2 . . . 2 Propulsion 3 | . . . . . . 2 . 1 Utility 8 | . . . . . 1 . 1 6 Weapon 8 | . 2 . . 1 3 . 1 1 Tool/Special . | . . . . . . . . . Average Slot Usage (%) 96 | . 99 100 72 100 96 97 96 91 Engine 10 | . 14 14 14 14 9 6 9 7 Treads 17 | . 27 11 . 20 27 20 . . Leg 6 | . . . . . . 6 26 23 Wheel 3 | . . 16 28 7 . . . . Device 6 | . 6 . . . 8 11 7 15 Storage 11 | . 14 14 14 14 9 9 9 9 Processor 1 | . . . . . . . 10 8 Protection 10 | . 6 14 14 14 15 13 6 . Ballistic Gun 25 | . 26 26 1 28 26 25 26 25 Peak Build Rating 43 | 7 8 9 9 10 20 41 41 43 Average Rating 18 | 5 7 8 7 9 17 24 38 38 On Entrance 15 | . 7 8 9 9 10 20 38 41 Avg Prop Armor Cover (%) 6 | . 6 . . . . . . . Naked Turns . | . . . . . . . . . Heaviest Build 90 | 12 21 90 90 90 63 66 63 63 Greatest Support 63 | 40 40 40 26 40 63 63 60 60 Greatest Overweight (x) 3 | . 1 3 3 3 . 2 1 1 Average Overweight (x) . | . . 2 3 1 . . . . Largest Inventory Capacity 25 | 8 10 25 25 25 20 20 20 20 Average Capacity 17 | 7 9 20 25 20 20 20 20 20 Most Carried 22 | 2 10 17 21 22 20 20 20 20 Average Carried 16 | . 8 13 20 19 19 19 19 19 Final Capacity 25 | 8 10 25 25 20 20 20 20 20 Final Carried 20 | 2 10 17 19 20 20 20 20 16 Class Distribution -------------------- 32% | Mutant 26% | Scavenger-Tank 21% | Scavenger-Mutant 13% | Scavenger-Gunner 3% | Tank Dominant Class ---------------- Mutant | -10/Materials Scavenger-Mutant | -10/Mines Mutant | -10/Exiles Scavenger-Mutant | -9/Mines Scavenger-Tank | -8/Materials Scavenger-Tank | -8/Garrison Scavenger-Gunner | -8/Materials Scavenger-Gunner | -8/Garrison Resources | -11 -10 -10 -10 -9 -8 -8 -8 -8 ----------- Run | Yrd Mat Min Exi Min Mat Gar Mat Gar Matter Collected 2973 | 234 759 153 . 165 211 785 471 195 Remotely . | . . . . . . . . . Salvage Created 3317 | 92 797 154 . 57 329 683 739 466 Parts 203 | 9 46 16 . 6 17 42 44 23 Haulers Intercepted 3 | . 2 . . . 1 . . . Recyclers Shooed 1 | . . 1 . . . . . . Parts Field Recycled . | . . . . . . . . . Retrieved Matter . | . . . . . . . . . Parts Self-Destructed . | . . . . . . . . . Prevented . | . . . . . . . . . Parts Restored . | . . . . . . . . . Kills | -11 -10 -10 -10 -9 -8 -8 -8 -8 ------- Run | Yrd Mat Min Exi Min Mat Gar Mat Gar Combat Hostiles Destroyed 63 | . 19 . . 1 5 16 13 9 Melee 1 | . 1 . . . . . . . Guns 58 | . 17 . . 1 5 13 13 9 AOE 3 | . . . . . . 3 . . Classes Destroyed 14 | 2 6 1 . . 1 2 2 . Worker 4 | . 1 1 . . . . 2 . Builder 2 | . . 1 . . . . 1 . Tunneler 5 | 2 . 2 . 1 . . . . Hauler 3 | . 2 . . . 1 . . . Recycler 2 | 1 . 1 . . . . . . Operator 3 | . 1 . . . . . 2 . Watcher 1 | . 1 . . . . . . . Swarmer 12 | . 7 . . . . 4 1 . Grunt 36 | . 12 . . 1 2 7 7 7 Brawler 4 | . . . . . . 1 1 2 Duelist 1 | . . . . . . 1 . . Sentry 7 | . . . . . 3 3 1 . Specialist 2 | . . . . . . . 2 . Hunter 1 | . . . . . . . 1 . Best Kill Streak 7 | 3 3 2 . 1 2 5 6 7 Combat Bots Only 7 | . 3 . . 1 2 5 5 7 Max Kills in Single Turn 3 | 1 2 1 . 1 1 3 2 2 Gunslinging . | . . . . . . . . . Exploded 3 | . . . . . . 3 . . Melee 1 | . 1 . . . . . . . Uniques/NPCs Destroyed . | . . . . . . . . . Combat | -11 -10 -10 -10 -9 -8 -8 -8 -8 -------- Run | Yrd Mat Min Exi Min Mat Gar Mat Gar Hostile Shots Fired 366 | . 117 . . 13 17 79 66 74 Missed 93 | . 34 . . . 6 21 15 17 Hits 273 | . 83 . . 13 11 58 51 57 Melee 2 | . . . . . . . 2 . Projectile 271 | . 83 . . 13 11 58 49 57 Critical Strikes 11 | . . . . . . 7 3 1 Damage Taken 4543 | . 947 . . 184 167 1046 881 1318 Core 705 | . 130 . . 23 . 108 174 270 Absorbed by Shields . | . . . . . . . . . Redirected to Shielding 9 | . . . . . 9 . . . Core Remaining (%) 69 | 100 . . . 38 . . . . Volleys Fired 242 | 5 66 17 . 17 15 59 34 29 Largest 3 | 2 2 2 . 2 3 3 3 3 Hottest 120 | 40 120 40 . 40 69 69 74 79 Shots Fired 605 | 10 129 34 . 36 45 173 102 76 Gun 599 | 10 124 34 . 36 45 172 102 76 Cannon . | . . . . . . . . . Launcher 1 | . . . . . . 1 . . Special 5 | . 5 . . . . . . . Kinetic 599 | 10 124 34 . 36 45 172 102 76 Thermal 5 | . 5 . . . . . . . Explosive 1 | . . . . . . 1 . . Electromagnetic . | . . . . . . . . . Robot Hit Streak 43 | 8 10 5 . 8 17 17 43 13 Robot Miss Streak 4 | . 3 3 . 2 2 4 2 2 Penetration Max 1 | . . . . . . . 1 1 Secondary Targets 16 | . 4 . . . 1 2 3 6 Max Gunslinging Chain 1 | . 1 . . . 1 1 1 1 Shots Hit Robots 430 | 8 89 20 . 26 31 115 84 57 Core Hits 188 | 4 36 15 . 9 15 46 41 22 Critical Kills . | . . . . . . . . . Critical Parts Destroyed 5 | . 2 . . . . . 1 2 Critical Strikes 5 | . 2 . . . . . 1 2 Destroy 3 | . . . . . . . 1 2 Smash 2 | . 2 . . . . . . . Melee Attacks 27 | . 13 . . . 1 13 . . Impact 15 | . 13 . . . 1 1 . . Slashing 12 | . . . . . . 12 . . Piercing . | . . . . . . . . . Sneak Attacks 2 | . 2 . . . . . . . Combat Hostiles . | . . . . . . . . . Follow-up Attacks . | . . . . . . . . . Damage Inflicted 6377 | 85 1164 192 . 215 364 1874 1421 1062 Guns 5859 | 85 874 192 . 215 355 1685 1391 1062 Cannons . | . . . . . . . . . Explosions 189 | . . . . . . 189 . . Melee 280 | . 280 . . . . . . . Ramming 49 | . 10 . . . 9 . 30 . Kinetic 5859 | 85 874 192 . 215 355 1685 1391 1062 Thermal . | . . . . . . . . . Explosive 189 | . . . . . . 189 . . Electromagnetic . | . . . . . . . . . Impact 280 | . 280 . . . . . . . Slashing . | . . . . . . . . . Piercing . | . . . . . . . . . Highest Corruption 6 | . 6 6 6 6 . . 5 5 Average Corruption 5 | . 5 6 6 6 . . 5 5 Corruption Purged . | . . . . . . . . . Corruption Blocked . | . . . . . . . . . Effects 86 | . 33 14 11 16 . . 1 11 Message Errors 20 | . 8 1 1 5 . . 1 4 Matter Fused 25 | . 6 9 4 4 . . . 2 Heat Flow Errors 8 | . 4 2 2 . . . . . Energy Discharges 11 | . 5 1 3 2 . . . . Parts Rejected 2 | . 1 . . . . . . 1 Parts Fused 3 | . 1 . . 1 . . . 1 Data Loss (minor) 5 | . 3 1 . 1 . . . . Data Loss (major) 6 | . 4 . . 1 . . . 1 Misfires 3 | . 1 . . 2 . . . . Alerts 2 | . . . 1 . . . . 1 Weapon Failures 1 | . . . . . . . . 1 Overload Shots . | . . . . . . . . . Overflow Damage 104 | . 92 . . . . 12 . . Projectiles . | . . . . . . . . . Explosions 12 | . . . . . . 12 . . Melee 92 | . 92 . . . . . . . Knockbacks 2 | . 2 . . . . . . . Impact 2 | . 2 . . . . . . . Kinetic . | . . . . . . . . . Secondary . | . . . . . . . . . Self-Inflicted Damage . | . . . . . . . . . Shots . | . . . . . . . . . Rammed 5 | . 3 . . . 2 . . . Targets Rammed 8 | . 3 . . . 2 . 3 . Kicked 3 | . . . . . . . 3 . Crushed . | . . . . . . . . . Highest Temperature 271 | . 271 256 129 30 37 106 141 7 Average Temperature 40 | . 45 58 67 10 17 40 40 3 Received Heat Transfer 1731 | . 354 . . 81 54 531 360 351 Effects 1 | . 1 . . . . . . . Interference 1 | . 1 . . . . . . . Siege Activations . | . . . . . . . . . Martial Activations . | . . . . . . . . . Shielding Activations . | . . . . . . . . . Robots Disrupted . | . . . . . . . . . Combat Hostiles . | . . . . . . . . . Robots Corrupted 2 | . 2 . . . . . . . Combat Hostiles 1 | . 1 . . . . . . . Parts Fried 3 | . 3 . . . . . . . Impact Corruptions 6 | . 6 . . . . . . . Robots Melted . | . . . . . . . . . Combat Hostiles . | . . . . . . . . . Parts Melted 2 | . . . . . 2 . . . Heat Transferred . | . . . . . . . . . Parts Sabotaged . | . . . . . . . . . Parts Stolen . | . . . . . . . . . Parts Stripped . | . . . . . . . . . Power Chain Reactions . | . . . . . . . . . Alert | -11 -10 -10 -10 -9 -8 -8 -8 -8 ------- Run | Yrd Mat Min Exi Min Mat Gar Mat Gar Maximum Alert Level 3 | . . . . . . 3 2 2 Low Security (%) 61 | 100 100 100 . 100 100 14 3 . Level 1 11 | . . . . . . 11 53 24 Level 2 23 | . . . . . . 60 42 75 Level 3 3 | . . . . . . 13 . . Level 4 . | . . . . . . . . . Level 5 . | . . . . . . . . . High Security . | . . . . . . . . . Max Security . | . . . . . . . . . Peak Influence 789 | 10 166 57 . 60 46 789 576 531 Initial 384 | . . 57 . . . 19 384 371 Average 214 | 1 77 6 . 11 8 501 368 458 Influence Increases 2910 | 15 639 28 . 191 169 840 828 200 Destroy 0b10 Robot/C 1800 | . 380 . . 140 100 480 520 180 Destroy 0b10 Robot/NC 120 | 15 25 25 . 5 10 5 35 . Destroy Leader 312 | . 86 . . 20 34 20 142 10 Allied During Kill 186 | . . 3 . 26 1 53 103 . Successful Hack 45 | . 7 . . . 7 21 10 . Select Force Hacks 60 | . 60 . . . . . . . Disable Machine 45 | . 15 . . . 15 15 . . Anti-Garrison Action 200 | . . . . . . 200 . . Destroy Structure 67 | . 6 . . . 2 46 3 10 Lose Combat Pursuer 75 | . 60 . . . . . 15 . Influence Decreases 2479 | 15 491 176 . 191 139 81 1045 341 Entered New Map 708 | . . 91 . . . 11 405 201 Time Decay 1175 | 15 461 85 . 145 119 . 350 . Lost Part 246 | . 30 . . 6 . 30 40 140 Lost Ally 200 | . . . . 40 20 40 100 . Purge Threat 150 | . . . . . . . 150 . Squads Dispatched 14 | . 7 . . . 1 . 6 . Investigation 5 | . 5 . . . . . . . Extermination . | . . . . . . . . . Reinforcement 7 | . 2 . . . 1 . 4 . Assault . | . . . . . . . . . Garrison 2 | . . . . . . . 2 . Intercept . | . . . . . . . . . Searches Triggered . | . . . . . . . . . Construction Impeded 1 | . . . . . . . 1 . Haulers Reinforced . | . . . . . . . . . Active Scanning Responses . | . . . . . . . . . Cargo Convoy Interrupts . | . . . . . . . . . Stealth | -11 -10 -10 -10 -9 -8 -8 -8 -8 --------- Run | Yrd Mat Min Exi Min Mat Gar Mat Gar Distress Signals 6 | . . . . . 3 . 3 . Communications Jammed . | . . . . . . . . . Distress Signals . | . . . . . . . . . Times Spotted 117 | . 34 . . 7 9 23 34 10 Peak Tracking Total 6 | . 4 . . 3 2 4 6 5 Tactical Retreats 3 | . 2 . . . . . 1 . Traps | -11 -10 -10 -10 -9 -8 -8 -8 -8 ------- Run | Yrd Mat Min Exi Min Mat Gar Mat Gar Traps Triggered 6 | . 4 . . . . 1 1 . Indirectly . | . . . . . . . . . Trap Hack Attempts . | . . . . . . . . . Triggered . | . . . . . . . . . Disarmed . | . . . . . . . . . Reprogrammed . | . . . . . . . . . Reused . | . . . . . . . . . Traps Extracted . | . . . . . . . . . Installed . | . . . . . . . . . Triggered . | . . . . . . . . . Machines | -11 -10 -10 -10 -9 -8 -8 -8 -8 ---------- Run | Yrd Mat Min Exi Min Mat Gar Mat Gar Machines Disabled 6 | . 1 . . 1 1 3 . . Max in Single Turn 1 | . 1 . . . 1 1 . . Garrison Relay 2 | . . . . . . 2 . . Machines Repaired . | . . . . . . . . . Machines Dismantled . | . . . . . . . . . Machines Sabotaged . | . . . . . . . . . Overloaded Fab Kills . | . . . . . . . . . Hacking | -11 -10 -10 -10 -9 -8 -8 -8 -8 --------- Run | Yrd Mat Min Exi Min Mat Gar Mat Gar Machines Accessed 18 | . 7 . 2 . 2 2 5 . Terminals 10 | . 5 . . . 1 2 2 . Fabricators . | . . . . . . . . . Repair Stations . | . . . . . . . . . Recycling Units 3 | . 2 . . . . . 1 . Scanalyzers 1 | . . . . . . . 1 . Garrison Access 2 | . . . . . 1 . 1 . Total Hacks 43 | . 14 . 2 . 5 3 19 . Successful 20 | . 3 . 2 . 2 2 11 . Failed 22 | . 11 . . . 3 1 7 . Catastrophic 8 | . 5 . . . 1 . 2 . Database Lockouts 1 | . . . . . . . 1 . Manual 17 | . 14 . . . . . 3 . Terminals 22 | . 12 . . . 3 3 4 . Fabricators . | . . . . . . . . . Repair Stations . | . . . . . . . . . Recycling Units 3 | . 2 . . . . . 1 . Scanalyzers 12 | . . . . . . . 12 . Garrison Access 4 | . . . . . 2 . 2 . Terminal Hacks 7 | . 1 . 2 . 1 2 1 . Record 2 | . . . 2 . . . . . Robot Schematic 1 | . 1 . . . . . . . Open Door 1 | . . . . . . 1 . . Branch Access Points 1 | . . . . . 1 . . . Emergency Access Points 1 | . . . . . . 1 . . Unreport Threat 1 | . . . . . . . 1 . Fabricator Hacks . | . . . . . . . . . Repair Station Hacks . | . . . . . . . . . Recycling Unit Hacks . | . . . . . . . . . Scanalyzer 8 | . . . . . . . 8 . Insert Component 3 | . . . . . . . 3 . Analyze 4 | . . . . . . . 4 . Retrieve Study 1 | . . . . . . . 1 . Garrison Access Hacks 2 | . . . . . 1 . 1 . Unlock Access 2 | . . . . . 1 . 1 . Unauthorized Hacks 3 | . 2 . . . . . 1 . Terminals 1 | . . . . . . . 1 . Operators 1 | . . . . . . . 1 . Fabricators . | . . . . . . . . . Repair Stations . | . . . . . . . . . Recycling Units 2 | . 2 . . . . . . . Tunnel 2 | . 2 . . . . . . . Scanalyzers . | . . . . . . . . . Garrison Access . | . . . . . . . . . Data Cores Recovered . | . . . . . . . . . Used . | . . . . . . . . . Hacking Detections 13 | . 5 . . . 2 1 5 . Full Trace Events 2 | . 2 . . . . . . . Feedback Events . | . . . . . . . . . Feedback Blocked . | . . . . . . . . . Robot Schematics Acquired 1 | . 1 . . . . . . . Robots Built . | . . . . . . . . . Authchips . | . . . . . . . . . Time . | . . . . . . . . . Total Robot Build Rating . | . . . . . . . . . Part Schematics Acquired 3 | . . . . . . . 3 . Parts Built . | . . . . . . . . . Authchips . | . . . . . . . . . Time . | . . . . . . . . . Total Part Build Rating . | . . . . . . . . . Part Studies Acquired 1 | . . . . . . . 1 . Parts Repaired . | . . . . . . . . . Time . | . . . . . . . . . Parts Recycled . | . . . . . . . . . Recycled Matter . | . . . . . . . . . Retrieved Matter . | . . . . . . . . . Retrieved Components . | . . . . . . . . . Parts Scanalyzed 3 | . . . . . . . 3 . Part Schematics Acquired 3 | . . . . . . . 3 . Parts Damaged . | . . . . . . . . . Bothacking | -11 -10 -10 -10 -9 -8 -8 -8 -8 ------------ Run | Yrd Mat Min Exi Min Mat Gar Mat Gar Used RIF Installer . | . . . . . . . . . Robots Hacked . | . . . . . . . . . Non-combat . | . . . . . . . . . Combat . | . . . . . . . . . Robot Hacks Applied . | . . . . . . . . . Relay Couplers Released 10 | . . . . . . 10 . . Machine Destruction 10 | . . . . . . 10 . . Fabnet Peak Effective % . | . . . . . . . . . Robots Rewired 5 | . . . . . . 5 . . Allies Hacked . | . . . . . . . . . Hacks Repelled . | . . . . . . . . . Allies | -11 -10 -10 -10 -9 -8 -8 -8 -8 -------- Run | Yrd Mat Min Exi Min Mat Gar Mat Gar Total Allies 12 | . . 4 . 1 . 7 . . Largest Group 5 | . . 4 3 3 2 4 5 . Highest-Rated Group 168 | . . 71 40 63 32 128 168 . Highest-Rated Ally 40 | . . 31 16 31 16 40 40 . Initial Warlord ECA Mod 4 | . . . . . . . 4 4 Total Orders . | . . . . . . . . . Ally Attacks 164 | . . . . 36 19 49 60 . Total Damage 2583 | . . . . 321 228 678 1356 . Kills 30 | . . . . 6 1 8 15 . Allies Corrupted . | . . . . . . . . . Allies Melted . | . . . . . . . . . Intel | -11 -10 -10 -10 -9 -8 -8 -8 -8 ------- Run | Yrd Mat Min Exi Min Mat Gar Mat Gar Active Infowar (turns) 3259 | 20 671 . . . 546 1392 446 184 Seismic 3259 | 20 671 . . . 546 1392 446 184 Robot Analysis Total . | . . . . . . . . . Derelict Logs Recovered 2 | . . 1 . 1 . . . . Drone Launches . | . . . . . . . . . Drone Recoveries . | . . . . . . . . . Exploration | -11 -10 -10 -10 -9 -8 -8 -8 -8 ------------- Run | Yrd Mat Min Exi Min Mat Gar Mat Gar Turns Passed 6000 | 114 1416 593 286 616 548 1392 789 246 Spaces Moved 2859 | 56 683 352 209 274 263 610 338 74 Core 3 | 3 . . . . . . . . Treads 1681 | 53 681 115 . 170 263 399 . . Legs 625 | . 2 . . . . 211 338 74 Wheels 550 | . . 237 209 104 . . . . Hover . | . . . . . . . . . Flight . | . . . . . . . . . Fastest Speed 50 | 50 160 135 135 105 160 120 120 120 Average Speed 164 | 154 160 148 135 191 160 171 177 180 Slowest Speed 320 | 160 190 320 135 240 160 260 190 190 Overloaded Moves . | . . . . . . . . . Propulsion Burnouts . | . . . . . . . . . Robots Hopped . | . . . . . . . . . Potential Cave-ins . | . . . . . . . . . Cave-ins Triggered . | . . . . . . . . . Exploration Rate (%) 50 | 5 91 89 60 59 30 59 36 21 Regions Visited 8 Branch Regions 3 Pre-discovered Areas 2 | . 2 . . . . . . . Known Exits Taken 2 | . . . . . 1 . 1 . Unknown Exits Taken 5 | 1 1 1 1 1 . . . . Scrap Searched 3 | . . 1 . 2 . . . . Spaces Dug 5 | . 5 . . . . . . . Terrain Destroyed 6 | . 6 . . . . . . . Melee 1 | . 1 . . . . . . . Projectile 5 | . 5 . . . . . . . AOE . | . . . . . . . . . Terrain Rammed . | . . . . . . . . . Walls Destroyed . | . . . . . . . . . Machines Disabled . | . . . . . . . . . Actions | -11 -10 -10 -10 -9 -8 -8 -8 -8 --------- Run | Yrd Mat Min Exi Min Mat Gar Mat Gar Total 3614 | 71 852 394 214 340 365 805 448 125 Wait 230 | 2 45 11 . 35 50 34 43 10 Move 2852 | 55 682 351 208 273 262 609 338 74 Hop . | . . . . . . . . . Pick Up 51 | 2 12 9 2 6 8 3 6 3 Fast Attach 31 | 7 3 . . 1 3 7 8 2 Attach 17 | . 2 . 2 1 3 1 2 6 Detach 2 | . . . 2 . . . . . Swap 60 | . 19 4 . 3 8 21 5 . Drop 53 | . 7 2 . 4 13 17 9 1 Fire 242 | 5 66 17 . 17 15 59 34 29 Melee 27 | . 13 . . . 1 13 . . Ram . | . . . . . . . . . Kick 3 | . . . . . . . 3 . Crush 5 | . 3 . . . 2 . . . Escape Stasis . | . . . . . . . . . Rewire 41 | . . . . . . 41 . . Trap . | . . . . . . . . . Miscellaneous . | . . . . . . . . . Route ------- -11/Scrapyard -10/Materials (discovered 5 exits: [*Mat x3] / [*Min x2]) -10/Mines (discovered 3 exits: [*Mat x2] / *Exi) -10/Exiles -9/Mines (discovered 2 exits: *Mat x2) -8/Materials (discovered 3 exits: *Fac x2 / Gar) -8/Garrison (discovered 3 exits: *Fac x2 / *Mat) -8/Materials -8/Garrison History --------- Turn | Location | Event 4 | -11/Scrapyard | Discovered new exit (range 15) 115 | -11/Scrapyard | Entered Materials 144 | -10/Materials | Discovered new exit (range 13) 317 | -10/Materials | Build established: Mutant 340 | -10/Materials | Discovered new exit (range 9) 905 | -10/Materials | Discovered new exit (range 6) 1212 | -10/Materials | Discovered new exit (range 11) 1310 | -10/Materials | Discovered new exit (range 16) 1415 | -10/Materials | Core integrity fell below 50% 1531 | -10/Materials | Entered Mines 1547 | -10/Mines | Learned Materials stockpile data 1590 | -10/Mines | Discovered new exit (range 10) 1632 | -10/Mines | Assisted by bots powering up and referring to "LRC-V3" 1698 | -10/Mines | Received a Rocket Launcher from a helpful Derelict 1777 | -10/Mines | Received a Mining Laser from a helpful Derelict 1864 | -10/Mines | Build established: Scavenger-Mutant 1892 | -10/Mines | Deemed a non-threat by the Exiles lab entrance 1892 | -10/Mines | Discovered new exit (range 5) 1966 | -10/Mines | Discovered new exit (range 10) 2124 | -10/Mines | Entered Exiles 2124 | -10/Exiles | Found Exiles lab abandoned 2124 | -10/Exiles | Accompanied by 3 allies 2393 | -10/Exiles | Discovered new exit (range 14) 2410 | -10/Exiles | Entered Mines 2410 | -9/Mines | Accompanied by 3 allies 2451 | -9/Mines | Discovered new exit (range 5) 2476 | -9/Mines | Escorted by a lone wolf Derelict 2519 | -9/Mines | Discovered new exit (range 9) 2617 | -9/Mines | Learned location of 1 exit from Materials 3026 | -9/Mines | Entered Materials 3026 | -8/Materials | Accompanied by 2 allies 3026 | -8/Materials | Evolved 4 slots: Propulsion x1, Utility x2, Weapon x1 3027 | -8/Materials | Identified exit to Factory 3194 | -8/Materials | Met 7R-MNS 3339 | -8/Materials | Build established: Scavenger-Tank 3438 | -8/Materials | Identified exit to Garrison 3452 | -8/Materials | Discovered exit to Factory (range 13) 3574 | -8/Materials | Entered Garrison 3604 | -8/Garrison | Triggered checkpoint 3649 | -8/Garrison | Rescued a captive Derelict 3652 | -8/Garrison | Rescued a captive Derelict 3690 | -8/Garrison | Garrison Relay disabled 3812 | -8/Garrison | Triggered checkpoint 3822 | -8/Garrison | Triggered checkpoint 3839 | -8/Garrison | Triggered checkpoint 3928 | -8/Garrison | Triggered checkpoint 3929 | -8/Garrison | Discovered exit to Factory (range 13) 3971 | -8/Garrison | Discovered new exit (range 6) 4026 | -8/Garrison | Triggered checkpoint 4079 | -8/Garrison | Garrison Relay disabled 4418 | -8/Garrison | Discovered exit to Factory (range 9) 4966 | -8/Garrison | Entered Materials 4966 | -8/Materials | Accompanied by 5 allies 5430 | -8/Materials | Central database locked down 5448 | -8/Materials | Build established: Scavenger-Gunner 5618 | -8/Materials | Garrison activated, responded to threat 5657 | -8/Materials | Core integrity fell below 50% 5755 | -8/Materials | Identified exit to Garrison 5755 | -8/Materials | Entered Garrison 5855 | -8/Garrison | Triggered checkpoint 5883 | -8/Garrison | Destroyed 7 combat bots 5950 | -8/Garrison | Spotted B-75 Beast 5980 | -8/Garrison | Core integrity fell below 20% 6001 | -8/Garrison | Destroyed by B-75 Beast with Heavy Plasma Cannon Last Messages --------------- 05979_ Knocked back. 05980_ Acquired 6 matter. 05982_ K3:<|FR#8LBUWUKOLLX6